Cogmind - Beta 15 @@@ ROGUE MODE // 2025.05.19 @ 21:48:56 Player: DuckBoy Result: Destroyed by Y-45 Defender with Beam Rifle Performance ------------- Evolutions (0) 0 Regions Visited (3) 600 Robots Destroyed (35) 175 Value Destroyed (732) 732 Prototype IDs (11) 220 Alien Tech Used (0) 0 Bonus (0) 0 TOTAL SCORE: 1727 Bonus ------- None Cogmind --------- Core Integrity 0/250 Matter 48/300 Energy 200/200 System Corruption 2% Temperature Cool (9) Movement Treading (250) Ox1 Location -9/Recycling Parts ------- > --- POWER (1) -------- Subdweller Power Source > --- PROPULSION (2) --- Light Treads Spiked Treads > --- UTILITY (2) ------ High-capacity Storage Unit Core Shielding > --- WEAPON (2) ------- Subdweller Laser Subdweller Shrapnel Launcher > --- INVENTORY (20) --- Ion Engine Light Ion Engine Subdweller Power Source Arachnoskeleton Wheel Compact Wheel Subdweller Monowheel Subdweller Monowheel Improved Terrain Scanner Hacking Suite Riot Gun Subdweller Laser Subdweller Beam Cannon Battle Rifle Barrage Gun Battle Cannon Datajack Flamer Peak State ------------ > --- POWER ------------ Subdweller Power Source > --- PROPULSION ------- Light Treads Subdweller Monowheel > --- UTILITY ---------- High-capacity Storage Unit Core Shielding > --- WEAPON ----------- Subdweller Laser Battle Rifle > --- INVENTORY -------- Ion Engine Light Ion Engine Subdweller Power Source Spiked Treads Arachnoskeleton Wheel Compact Wheel Subdweller Monowheel Improved Terrain Scanner Hacking Suite Riot Gun Subdweller Laser Subdweller Beam Cannon Barrage Gun Battle Cannon Subdweller Shrapnel Launcher Datajack Flamer [Rating: 16] Favorites ----------- Power Ion Engine Engine Ion Engine Propulsion Light Treads Treads Light Treads Wheel Subdweller Monowheel Utility Core Shielding Storage High-capacity Storage Unit Protection Core Shielding Weapon Assault Rifle Energy Gun Medium Laser Ballistic Gun Assault Rifle Launcher Subdweller Shrapnel Launcher Special Melee Weapon Datajack Build | -11 -10 -10 -9 ------- Run | Yrd Mat Sub Rec Slots Evolved . | . . . . Power . | . . . . Propulsion . | . . . . Utility . | . . . . Weapon . | . . . . Parts Attached 21 | 4 9 8 . Power 2 | 1 . 1 . Engine 2 | 1 . 1 . Core . | . . . . Reactor . | . . . . Propulsion 7 | 2 2 3 . Treads 4 | . 2 2 . Leg . | . . . . Wheel 3 | 2 . 1 . Hover . | . . . . Flight . | . . . . Utility 4 | 1 3 . . Device . | . . . . Storage 3 | 1 2 . . Processor . | . . . . Hackware . | . . . . Protection 1 | . 1 . . Artifact . | . . . . Weapon 8 | . 4 4 . Energy Gun 2 | . 1 1 . Energy Cannon . | . . . . Ballistic Gun 3 | . 2 1 . Ballistic Cannon . | . . . . Launcher 2 | . 1 1 . Special Weapon . | . . . . Impact Weapon . | . . . . Slashing Weapon . | . . . . Piercing Weapon . | . . . . Special Melee Weapon 1 | . . 1 . Unidentified Prototypes . | . . . . Parts Lost 3 | . . 3 . Power 1 | . . 1 . Propulsion 1 | . . 1 . Utility . | . . . . Weapon 1 | . . 1 . Highest Loss Streak 1 | . . 1 . To Critical Strikes . | . . . . Average Backups 13 | 3 9 16 18 Power 3 | . 2 3 3 Propulsion 3 | 1 2 4 5 Utility 1 | . 1 2 2 Weapon 4 | 1 2 5 7 Tool/Special . | . . . . Unused Backups 14 | . . 1 13 Power 4 | . . 1 3 Propulsion 2 | . . . 2 Utility 2 | . . . 2 Weapon 6 | . . . 6 Tool/Special . | . . . . Average Slot Usage (%) 97 | . 94 99 100 Engine 13 | . 14 13 14 Treads 27 | . 27 26 28 Storage 14 | . 14 14 14 Protection 12 | . 10 14 14 Energy Gun 11 | . 8 14 14 Ballistic Gun 10 | . 13 9 . Launcher 3 | . 3 1 14 Special Melee Weapon 1 | . . 3 . Peak Build Rating 16 | 4 8 16 16 Average Rating 9 | 3 7 11 16 On Entrance 7 | . 4 8 16 Naked Turns . | . . . . Heaviest Build 58 | 10 51 58 58 Greatest Support 40 | 26 40 40 40 Greatest Overweight (x) 2 | . 1 2 1 Average Overweight (x) . | . . 1 1 Largest Inventory Capacity 20 | 8 20 20 20 Average Capacity 17 | 6 15 20 20 Most Carried 20 | 6 12 20 20 Average Carried 13 | 3 9 17 20 Final Capacity 20 | 8 20 20 20 Final Carried 20 | 6 11 20 20 Class Distribution -------------------- 100% | Mutant Dominant Class ---------------- Mutant | -10/Materials Mutant | -10/Subcaves Mutant | -9/Recycling Resources | -11 -10 -10 -9 ----------- Run | Yrd Mat Sub Rec Matter Collected 869 | 235 309 267 58 Remotely . | . . . . Salvage Created 607 | . 391 167 49 Parts 57 | . 40 15 2 Haulers Intercepted 1 | . 1 . . Recyclers Shooed . | . . . . Parts Field Recycled . | . . . . Retrieved Matter . | . . . . Parts Self-Destructed 6 | . . 6 . Prevented . | . . . . Kills | -11 -10 -10 -9 ------- Run | Yrd Mat Sub Rec Combat Hostiles Destroyed 23 | . 13 10 . Guns 5 | . 2 3 . AOE 18 | . 11 7 . Classes Destroyed 10 | . 8 2 . Worker 2 | . 2 . . Tunneler 1 | . 1 . . Hauler 1 | . 1 . . Recycler 2 | . 1 . 1 Operator 2 | . 2 . . Turret 1 | . . 1 . Watcher 3 | . 3 . . Swarmer 12 | . 9 3 . Grunt 4 | . 4 . . Subdweller 7 | . . 7 . Best Kill Streak 7 | . 4 7 1 Combat Bots Only 6 | . 3 6 . Max Kills in Single Turn 2 | . 2 2 1 Gunslinging . | . . . . Exploded 2 | . 2 2 . Melee . | . . . . Uniques/NPCs Destroyed . | . . . . Combat | -11 -10 -10 -9 -------- Run | Yrd Mat Sub Rec Hostile Shots Fired 104 | . 39 62 3 Missed 39 | . 17 21 1 Hits 65 | . 22 41 2 Projectile 65 | . 22 41 2 AOE 2 | . . 2 . Critical Strikes 2 | . . 1 1 Actively Blocked 2 | . . 1 1 Damage Taken 1026 | . 281 691 54 Core 259 | . 39 208 12 Absorbed by Shields . | . . . . Redirected to Shielding 48 | . 3 42 3 Regen/Repaired (Parts) 18 | . 18 . . Core Remaining (%) 100 | 100 . . . Volleys Fired 84 | . 51 29 4 Largest 2 | . 2 2 1 Hottest 85 | . 70 85 40 Shots Fired 128 | . 79 45 4 Gun 92 | . 60 32 . Cannon . | . . . . Launcher 36 | . 19 13 4 Special . | . . . . Kinetic 69 | . 41 24 4 Thermal 37 | . 19 18 . Explosive 22 | . 19 3 . Electromagnetic . | . . . . Robot Hit Streak 15 | . 5 15 1 Robot Miss Streak 4 | . 4 1 2 Penetration Max . | . . . . Secondary Targets . | . . . . Shots Hit Robots 63 | . 34 28 1 Core Hits 53 | . 33 19 1 Critical Kills . | . . . . Critical Parts Destroyed . | . . . . Critical Strikes 1 | . . 1 . Burn 1 | . . 1 . Melee Attacks 1 | . . 1 . Impact . | . . . . Slashing . | . . . . Piercing . | . . . . Sneak Attacks 1 | . . 1 . Combat Hostiles . | . . . . Follow-up Attacks . | . . . . Damage Inflicted 2627 | . 1077 1289 261 Guns 633 | . 399 234 . Cannons . | . . . . Explosions 1983 | . 667 1055 261 Melee . | . . . . Ramming 11 | . 11 . . Kinetic 1486 | . 273 952 261 Thermal 264 | . 126 138 . Explosive 866 | . 667 199 . Electromagnetic . | . . . . Impact . | . . . . Slashing . | . . . . Piercing . | . . . . Highest Corruption 2 | . 2 2 2 Average Corruption 2 | . 2 2 2 Corruption Purged . | . . . . Corruption Blocked . | . . . . Effects 24 | . 4 16 4 Message Errors 6 | . 2 3 1 Matter Fused 3 | . . 3 . Heat Flow Errors 3 | . . 3 . Energy Discharges 4 | . . 2 2 Data Loss (minor) 3 | . 1 2 . Data Loss (major) 1 | . . . 1 Misfires 2 | . . 2 . Alerts 1 | . . 1 . Weapon Failures 1 | . 1 . . Overload Shots . | . . . . Overflow Damage 21 | . 3 . 18 Projectiles . | . . . . Explosions 21 | . 3 . 18 Melee . | . . . . Knockbacks . | . . . . Impact . | . . . . Kinetic . | . . . . Secondary . | . . . . Self-Inflicted Damage 90 | . 66 . 24 Shots 3 | . 2 . 1 Rammed 2 | . 2 . . Targets Rammed 2 | . 2 . . Kicked . | . . . . Crushed . | . . . . Highest Temperature 228 | . 36 228 4 Average Temperature 33 | . 12 93 4 Received Heat Transfer 219 | . 21 180 18 Siege Activations . | . . . . Martial Activations . | . . . . Shielding Activations . | . . . . Robots Disrupted . | . . . . Combat Hostiles . | . . . . Robots Corrupted . | . . . . Combat Hostiles . | . . . . Parts Fried . | . . . . Impact Corruptions . | . . . . Robots Melted . | . . . . Combat Hostiles . | . . . . Parts Melted 1 | . . 1 . Heat Transferred 741 | . 370 371 . Parts Sabotaged . | . . . . Parts Stolen . | . . . . Parts Stripped . | . . . . Power Chain Reactions . | . . . . Alert | -11 -10 -10 -9 ------- Run | Yrd Mat Sub Rec Maximum Alert Level 1 | . 1 . . Low Security (%) 69 | 100 62 . 100 Level 1 30 | . 37 . . Level 2 . | . . . . Level 3 . | . . . . Level 4 . | . . . . Level 5 . | . . . . High Security . | . . . . Max Security . | . . . . Peak Influence 332 | . 332 . 73 Initial 73 | . . . 73 Average 145 | . 175 . 23 Influence Increases 875 | . 654 170 51 Destroy 0b10 Robot/C 340 | . 260 80 . Destroy 0b10 Robot/NC 55 | . 50 . 5 Destroy Leader 68 | . 68 . . Successful Hack 24 | . 19 . 5 Select Force Hacks 60 | . 60 . . Disable Machine 75 | . 75 . . Destroy Structure 163 | . 122 . 41 Lose Combat Pursuer 90 | . . 90 . Influence Decreases 829 | . 448 222 159 Entered New Map 181 | . . 100 81 Time Decay 628 | . 448 102 78 Lost Part 20 | . . 20 . Squads Dispatched 4 | . 4 . . Investigation 3 | . 3 . . Extermination . | . . . . Reinforcement 1 | . 1 . . Assault . | . . . . Garrison . | . . . . Intercept . | . . . . Searches Triggered . | . . . . Construction Impeded . | . . . . Haulers Reinforced . | . . . . Active Scanning Responses . | . . . . Cargo Convoy Interrupts . | . . . . Stealth | -11 -10 -10 -9 --------- Run | Yrd Mat Sub Rec Distress Signals . | . . . . Communications Jammed . | . . . . Distress Signals . | . . . . Times Spotted 40 | . 24 15 1 Peak Tracking Total 6 | . 6 6 1 Tactical Retreats 1 | . . 1 . Traps | -11 -10 -10 -9 ------- Run | Yrd Mat Sub Rec Traps Triggered 3 | . 3 . . Indirectly . | . . . . Trap Hack Attempts . | . . . . Triggered . | . . . . Disarmed . | . . . . Reprogrammed . | . . . . Reused . | . . . . Traps Extracted . | . . . . Installed . | . . . . Triggered . | . . . . Machines | -11 -10 -10 -9 ---------- Run | Yrd Mat Sub Rec Machines Disabled 10 | . 5 5 . Max in Single Turn 4 | . 2 4 . Machines Repaired . | . . . . Machines Dismantled . | . . . . Machines Sabotaged . | . . . . Overloaded Fab Kills . | . . . . Hacking | -11 -10 -10 -9 --------- Run | Yrd Mat Sub Rec Machines Accessed 13 | . 8 2 3 Terminals 8 | . 5 . 3 Fabricators . | . . . . Repair Stations 1 | . 1 . . Recycling Units 2 | . 2 . . Scanalyzers . | . . . . Garrison Access . | . . . . Total Hacks 46 | . 25 13 8 Successful 29 | . 11 13 5 Failed 17 | . 14 . 3 Catastrophic 1 | . 1 . . Database Lockouts . | . . . . Manual 21 | . 16 . 5 Terminals 23 | . 15 . 8 Fabricators . | . . . . Repair Stations 2 | . 2 . . Recycling Units 8 | . 8 . . Scanalyzers . | . . . . Garrison Access . | . . . . Terminal Hacks 18 | . 3 13 2 Record 12 | . . 12 . Part Schematic 2 | . 1 . 1 Robot Schematic 2 | . 1 . 1 Locate Traps 1 | . 1 . . Proto ID Catalog 1 | . . 1 . Fabricator Hacks . | . . . . Repair Station Hacks 2 | . 2 . . Scan Component 1 | . 1 . . Repair 1 | . 1 . . Recycling Unit Hacks 1 | . 1 . . Retrieve Components 1 | . 1 . . Scanalyzer . | . . . . Garrison Access Hacks . | . . . . Unauthorized Hacks 8 | . 5 . 3 Terminals 6 | . 3 . 3 Track 2 | . . . 2 Botnet 3 | . 2 . 1 Operators 1 | . 1 . . Fabricators . | . . . . Repair Stations . | . . . . Recycling Units 2 | . 2 . . Tunnel 2 | . 2 . . Scanalyzers . | . . . . Garrison Access . | . . . . Data Cores Recovered 1 | . 1 . . Used . | . . . . Hacking Detections 9 | . 7 . 2 Full Trace Events . | . . . . Feedback Events . | . . . . Feedback Blocked . | . . . . Robot Schematics Acquired 2 | . 1 . 1 Robots Built . | . . . . Authchips . | . . . . Time . | . . . . Total Robot Build Rating . | . . . . Part Schematics Acquired 2 | . 1 . 1 Parts Built . | . . . . Authchips . | . . . . Time . | . . . . Total Part Build Rating . | . . . . Parts Repaired 1 | . 1 . . Time 38 | . 38 . . Parts Recycled . | . . . . Recycled Matter . | . . . . Retrieved Matter . | . . . . Retrieved Components 2 | . 2 . . Parts Scanalyzed . | . . . . Part Schematics Acquired . | . . . . Parts Damaged . | . . . . Bothacking | -11 -10 -10 -9 ------------ Run | Yrd Mat Sub Rec Used RIF Installer . | . . . . Robots Hacked 1 | . . 1 . Non-combat 1 | . . 1 . Combat . | . . . . Robot Hacks Applied 1 | . . 1 . parse_system 1 | . . 1 . Relay Couplers Released . | . . . . Fabnet Peak Effective % . | . . . . Robots Rewired . | . . . . Allies Hacked . | . . . . Hacks Repelled . | . . . . Allies | -11 -10 -10 -9 -------- Run | Yrd Mat Sub Rec Total Allies . | . . . . Largest Group . | . . . . Highest-Rated Group . | . . . . Highest-Rated Ally . | . . . . Total Orders . | . . . . Ally Attacks . | . . . . Total Damage . | . . . . Kills . | . . . . Allies Corrupted . | . . . . Allies Melted . | . . . . Intel | -11 -10 -10 -9 ------- Run | Yrd Mat Sub Rec Active Infowar (turns) . | . . . . Robot Analysis Total . | . . . . Derelict Logs Recovered 1 | . . 1 . Drone Launches . | . . . . Drone Recoveries . | . . . . Exploration | -11 -10 -10 -9 ------------- Run | Yrd Mat Sub Rec Turns Passed 3001 | 53 1348 1333 267 Spaces Moved 1344 | 46 656 538 104 Core 1 | 1 . . . Treads 1227 | . 656 467 104 Legs . | . . . . Wheels 116 | 45 . 71 . Hover . | . . . . Flight . | . . . . Fastest Speed 50 | 50 160 130 250 Average Speed 195 | 90 168 225 250 Slowest Speed 320 | 100 240 320 250 Overloaded Moves . | . . . . Propulsion Burnouts . | . . . . Robots Hopped . | . . . . Potential Cave-ins . | . . . . Cave-ins Triggered . | . . . . Exploration Rate (%) 44 | 4 99 29 46 Regions Visited 3 Branch Regions 2 Pre-discovered Areas 2 | . 2 . . Known Exits Taken . | . . . . Unknown Exits Taken 3 | 1 1 1 . Scrap Searched 8 | . . 8 . Spaces Dug 12 | . 12 . . Terrain Destroyed 263 | . 136 78 49 Melee . | . . . . Projectile . | . . . . AOE 263 | . 136 78 49 Terrain Rammed . | . . . . Walls Destroyed . | . . . . Machines Disabled . | . . . . Actions | -11 -10 -10 -9 --------- Run | Yrd Mat Sub Rec Total 1590 | 55 814 613 108 Wait 102 | . 83 19 . Move 1341 | 45 655 537 104 Hop . | . . . . Pick Up 27 | 6 8 13 . Fast Attach 8 | 4 2 2 . Attach 4 | . 2 2 . Detach . | . . . . Swap 14 | . 9 5 . Drop 7 | . 2 5 . Fire 84 | . 51 29 4 Melee 1 | . . 1 . Ram . | . . . . Kick . | . . . . Crush 2 | . 2 . . Escape Stasis . | . . . . Rewire . | . . . . Trap . | . . . . Miscellaneous . | . . . . Route ------- -11/Scrapyard -10/Materials (discovered 6 exits: [*Mat x3] / [*Min x2] / *Sub) -10/Subcaves (discovered 2 exits: *Rec / [*Scr]) -9/Recycling History --------- Turn | Location | Event 8 | -11/Scrapyard | Discovered new exit (range 16) 54 | -11/Scrapyard | Entered Materials 305 | -10/Materials | Build established: Mutant 414 | -10/Materials | Discovered new exit (range 10) 551 | -10/Materials | Discovered new exit (range 8) 677 | -10/Materials | Repaired Imp. Terrain Scanner 852 | -10/Materials | Discovered new exit (range 15) 971 | -10/Materials | Discovered new exit (range 8) 1184 | -10/Materials | Discovered new exit (range 8) 1378 | -10/Materials | Discovered new exit (range 11) 1402 | -10/Materials | Entered Subcaves 1403 | -10/Subcaves | Approached by a straggling Scientist 1405 | -10/Subcaves | Ambushed by Subdwellers from Twisted Machinery 1705 | -10/Subcaves | Visited Clippyterm 1712 | -10/Subcaves | Learned 40 Factory zone layouts 1712 | -10/Subcaves | Learned Factory garrison access intel 1742 | -10/Subcaves | A swath of the cavern ceiling suddenly collapsed 1823 | -10/Subcaves | A swath of the cavern ceiling suddenly collapsed 1873 | -10/Subcaves | Learned location of 1 exit from Materials 2087 | -10/Subcaves | Visited 4L-MR0's lab 2115 | -10/Subcaves | Found Arachnoskeleton 2397 | -10/Subcaves | Scientist uncovered a shortcut to Scraptown 2456 | -10/Subcaves | Disturbed a concealed Subdweller 2660 | -10/Subcaves | Core integrity fell below 50% 2678 | -10/Subcaves | Core integrity fell below 20% 2691 | -10/Subcaves | Discovered new exit (range 14) 2735 | -10/Subcaves | Entered Recycling 3002 | -9/Recycling | Destroyed by Y-45 Defender with Beam Rifle Last Messages --------------- >>Trojan(Track) Trojan loaded successfully. Testing... Tracking enabled and active. >>Schematic(Imp. Hover Unit) Downloading schematic... Imp. Hover Unit Rating: 2 Schematic downloaded. 02903_ Acquired 58 matter. 02920_ Connecting with Terminal... >>Schematic(T-07 Excavator) Downloading schematic... T-07 Excavator Tier: 1 Schematic downloaded. 02943_ System corrupted: Energy discharge (-60). 02998_ U-05 Engineer lays Concrete. 03001_ Destroyed Welding Torch. 03001_ R-06 Scavenger destroyed. Map ----- +----------------------------------------------------+ | ?????????????????????????????????????????????????? | | ?????????????????????????????????????????????????? | | ?????????????????????????????????????????????????? | | ?????????????????????????????????????????????????? | | ?????????????????????????????????????????????????? | | ??????????????????????#####??????????????????????? | | ??????????????????????# ??????????????????????? | | ?????????????????????? ??????????????????????? | | ??????????????????????# ??????????????????????? | | ????????????????????### #??????????????????????? | | ????????????????????#== ?????????????????????? | | ????????????????????? ;#############???????? | | ????????????????????#= Y #???????? | | ????????????????????# #????????? | | ????????????????????# #????????? | | ??????????####+######; #????????? | | ????????? %= #????????? | | ????????? !u #????????? | | ????????? #????????? | | ?????????????# ==#####; #????????? | | ?????????????????????# #????????? | | ?????????????????????# #????????? | | ?????????????????????# ;;#####/#####????????? | | ??????????????????????# #?????# #????????????? | | ???????????????????????#; ;#??????# #????????????? | | ????????????????????????#@#???????# #????????????? | | ??????????????????????? ??????# #????????????? | | ????????????????????? ###??# #????????????? | | ????????????????????# ##T### #????????????? | | ????????????????????# + #????????????? | | ???????????????????#r # #????????????? | | ???????????????????## # #????????????? | | ????????????????????r + #????????????? | | ???????????????????## ### #????????????? | | ????????????????????# #% #????????????? | | ???????????????????#####+#####% ###??????????? | | ???????????????????? ??#%% ""#??????????? | | ?????????????????? ### Y"#??????????? | | ?????????????????? ""#??????????? | | ?????????????????????????####### ###??????????? | | ???????????????????????????????# ##???????????? | | ?????#######################???# "#???????????? | | ????## #?###r T#???????????? | | ????# #?#"" "#???????????? | | ?????# #?#"Y ##???????????? | | ?????# #?#""r #????????????? | | ?????# #?### #????????????? | | ?????# #???#r #????????????? | | ?????# ##### #????????????? | | ????????########+#########/##T## #????????????? | +----------------------------------------------------+ Best States ------------- Heat Dissipation 25 Energy Generation 10 Energy Capacity 250 Matter Stores 300 Matter Capacity 300 Sight Range 16 Terrain Scan Density 10 Core Shielding 20 Evasion (%) 42 Recoil Reduction 2 Item Schematics ----------------- Huge Storage Unit | -10/Materials | Hacked Imp. Hover Unit | -9/Recycling | Hacked Robot Schematics ------------------ M-13 Machinist | -10/Materials | Hacked T-07 Excavator | -9/Recycling | Hacked Fabricated ------------ Nothing Repaired ---------- Imp. Terrain Scanner | 18% | -10/Materials Alien Tech Used ----------------- None Achievements -------------- None Challenges ------------ None Game ------ Seed GravmagChromionDevice Manual? 0 Play Time 00:21:02 Cumulative 501.1 hours Start 2025.05.19 @ 21:29:01 End 2025.05.19 @ 21:48:56 Sessions 1 Manual Loads 0 Difficulty Rogue Special Mode None Game No. 318 Rogue 315 Adventurer 3 Explorer 0 Win Type - Total 8 Types 7/0/1/0/0/0/0/0/0/0 Lore% 74 Gallery% 71 Achievement% 68 Wizard Run 0 Options --------- Layout 0 ASCII 0 Keyboard 0 Movement Numpad Keybinds 0 Fullscreen 1 Font 18/SmallcapsGlow Map View 76x50 Zoom Use 0% Tactical HUD 1 Map Filters NONE Filters NONE Steam 1 RUN: 23dade49-1089-4912-bc67-b1f51bb55725